bitfinex/quotes_ETHUSD_20240922
["timestamp","ask_amount","ask_price","bid_price","bid_amount"]
[1726998314847,0.06409458,2579.9,2579.1,2.3061]
[1726998315054,0.06416121,2580.0,2579.1,2.3061]
[1726998315258,0.06402794,2579.8,2579.1,2.3061]
[1726998315573,0.06396129,2579.7,2579.1,2.3061]
[1726998315780,3.87584,2580.1,2579.1,2.3061]
[1726998315953,0.45182556,2580.0,2579.1,2.3061]
[1726998316944,0.06424156,2580.0,2579.0,3.0]
[1726998317146,6.1775287,2580.6,2579.1,2.3756]
[1726998317381,3.93544456,2580.5,2579.4,2.3756]
[1726998317677,0.06020456,2580.5,2579.4,2.3756]
[1726998317970,1.07146689,2580.5,2579.4,2.3756]
[1726998318344,0.06020456,2580.5,2579.4,2.3756]
[1726998320352,3.93550456,2580.5,2579.4,2.3756]
[1726998320558,3.93545456,2580.5,2579.4,2.3756]
[1726998321383,3.87545,2580.4,2579.4,2.3756]
[1726998321681,0.06030174,2580.3,2579.4,2.3756]
[1726998321850,4.71692191,2580.3,2579.4,2.3756]
[1726998322380,4.71692191,2580.3,2578.5,13.31919513]
[1726998322381,2.2956,2579.1,2578.5,0.40299647]
[1726998322543,0.05940692,2579.0,2578.3,2.3756]
[1726998323258,0.05940692,2579.0,2578.4,0.07755408]
[1726998323746,2.2956,2579.4,2578.5,0.07754949]
[1726998324081,0.05943433,2579.3,2578.4,0.07754677]
[1726998325246,3.93646433,2579.3,2578.3,2.3756]
[1726998326361,3.8774,2579.1,2578.3,2.3756]
[1726998326599,0.05911766,2579.0,2578.3,2.3756]
[1726998326766,3.87718,2579.2,2578.3,2.3756]
[1726998326965,0.83464244,2579.1,2578.3,2.3756]
[1726998327279,0.83464244,2579.1,2578.4,0.07755163]
[1726998327464,0.05921744,2579.1,2578.4,0.07755163]
[1726998327798,3.87707,2579.3,2578.4,0.07755163]
[1726998328010,0.05928128,2579.2,2578.4,0.07755163]
[1726998328302,2.2956,2579.4,2578.4,0.07755163]
[1726998328500,0.05921461,2579.1,2578.4,0.07755163]
[1726998328708,0.05934794,2579.3,2578.4,0.07755163]
[1726998328858,0.05914793,2579.0,2578.4,0.07755163]
[1726998329059,2.2956,2579.4,2578.4,0.07755163]
[1726998329300,0.05895783,2578.9,2578.4,0.07755163]
[1726998329498,0.617237,2579.3,2578.4,0.07755163]
[1726998329799,0.05889114,2578.8,2578.3,2.3756]
[1726998330011,4.494257,2579.3,2578.3,2.3756]
[1726998330197,0.05918531,2579.2,2578.3,2.3756]
[1726998330693,0.05918531,2579.2,2578.2,3.0]
[1726998330694,0.05918531,2579.2,2578.5,2.3756]
[1726998330889,0.05918531,2579.2,2578.6,0.07754063]
[1726998331069,6.17211,2579.7,2578.6,0.07754063]
[1726998331273,0.05913563,2579.1,2578.6,3.0]
[1726998331487,2.2956,2580.0,2578.6,0.55]
[1726998331763,0.05550222,2579.9,2579.0,2.3756]
[1726998331968,0.05550222,2579.9,2579.1,2.453119]
[1726998332282,3.87571,2580.2,2579.1,2.3756]
[1726998332464,0.05550078,2579.8,2579.1,2.3756]
[1726998332664,4.34157102,2580.1,2579.1,2.3756]
[1726998332902,0.05543414,2579.7,2579.1,2.3756]
[1726998333107,4.34157102,2580.1,2579.1,2.3756]
[1726998333612,0.46568102,2580.1,2579.1,2.3756]
[1726998333766,0.48977315,2580.0,2579.1,2.3756]
[1726998334768,0.05563405,2580.0,2579.1,2.3756]
[1726998335004,3.87574,2580.2,2579.1,2.3756]
[1726998335207,0.05581122,2580.1,2579.1,2.3756]
[1726998335507,3.93164122,2580.1,2579.1,2.3756]
[1726998335666,0.05581122,2580.1,2579.3,2.2898]
[1726998335870,0.05581122,2580.1,2579.5,2.2898]
[1726998336082,6.17084,2580.5,2579.5,2.2898]
[1726998336283,0.05566605,2580.0,2579.5,2.2898]
[1726998336601,0.05559941,2579.9,2579.5,2.2898]
[1726998336784,7.17612087,2580.5,2579.5,2.2898]
[1726998337285,0.05593255,2580.4,2579.5,2.2898]
[1726998338120,0.05593255,2580.4,2579.6,0.07750794]
[1726998338694,0.05593255,2580.4,2579.5,2.2898]
[1726998339008,0.0067787,2580.6,2579.7,2.2898]
[1726998339195,0.05601424,2580.5,2579.9,2.2898]
[1726998339398,0.05601424,2580.5,2580.0,0.07749464]
[1726998339700,0.05601424,2580.5,2579.9,2.2898]
[1726998340435,0.05601424,2580.5,2580.0,0.07749411]
[1726998340731,0.05601424,2580.5,2580.1,2.2898]
[1726998341236,0.0067787,2580.6,2580.1,2.2898]
[1726998342895,0.04375059,2580.5,2580.1,2.2898]
[1726998343204,0.0067787,2580.6,2580.1,2.2898]
[1726998343828,0.0067787,2580.6,2580.2,0.07749207]
[1726998343829,0.04376777,2580.5,2580.2,0.07749207]
[1726998343993,0.0067787,2580.6,2580.1,2.2898]
[1726998344197,0.04378496,2580.5,2580.1,2.2898]
[1726998344804,0.0067787,2580.6,2580.1,2.2898]
[1726998345140,3.87466,2580.9,2580.1,2.2898]
[1726998345141,2.4538,2580.8,2580.1,2.2898]
[1726998345515,0.04388113,2580.7,2580.1,2.2898]
[1726998350510,0.04388113,2580.7,2580.2,0.07749428]
[1726998351032,0.0384929,2580.9,2580.2,0.07749428]
[1726998351238,0.04305224,2580.8,2580.2,0.07749428]
[1726998351610,0.04305224,2580.8,2580.1,2.2898]
[1726998352928,0.04305224,2580.8,2580.2,0.07749185]
[1726998354252,0.04305224,2580.8,2580.1,2.2898]
[1726998354655,1.07149675,2580.8,2579.9,3.0]
[1726998354954,2.4538,2580.3,2579.8,6.6680993]
[1726998355307,0.03796447,2580.2,2579.8,6.6680993]
[1726998355823,0.03795766,2580.1,2579.8,6.6680993]
[1726998356019,2.4538,2580.3,2579.8,6.6680993]
[1726998356250,3.87516,2580.6,2579.8,6.6680993]
[1726998356251,0.03802427,2580.2,2579.9,3.07750911]
[1726998356612,2.4538,2580.5,2579.9,3.07750911]
[1726998356910,0.03815748,2580.4,2579.9,3.07750911]
[1726998357760,0.03815748,2580.4,2579.9,0.07750911]
[1726998357908,0.03815748,2580.4,2579.6,3.0]
[1726998361967,0.03815748,2580.4,2579.7,0.0775027]
[1726998362627,0.03815748,2580.4,2579.6,3.0]
[1726998364236,3.91352748,2580.4,2579.6,3.0]
[1726998364639,2.4605,2580.3,2579.6,3.0]
[1726998364875,0.03792737,2580.2,2579.6,3.0]
[1726998365391,0.03792737,2580.2,2579.5,6.6680993]
[1726998365392,2.4605,2580.1,2579.2,6.6680993]
[1726998365534,2.4605,2579.5,2579.2,6.6680993]
[1726998365886,0.03747178,2579.4,2578.8,2.3563]
[1726998366098,0.03747178,2579.4,2578.9,0.07753267]
[1726998366304,0.03747178,2579.4,2578.8,2.3563]
[1726998366450,2.4605,2579.5,2578.8,2.3563]
[1726998366650,0.03745999,2579.3,2578.9,0.07753264]
[1726998366902,2.4605,2579.5,2578.9,3.07753264]
[1726998367071,0.03735489,2579.2,2578.9,3.07753264]
[1726998367283,2.4605,2580.0,2578.9,3.0]
[1726998367462,7.39532868,2580.0,2578.9,3.0]
[1726998367668,0.03765034,2579.9,2578.9,3.0]
[1726998370455,3.91389034,2579.9,2578.9,3.0]
[1726998371171,0.03765034,2579.9,2578.9,3.0]
[1726998371670,3.91379034,2579.9,2578.9,3.0]
[1726998371867,4.93881737,2579.9,2578.9,3.0]
[1726998372281,3.87627,2579.8,2578.9,3.0]
[1726998372471,2.4605,2579.8,2578.8,5.3563]
[1726998372700,3.91374946,2579.7,2578.8,5.3563]
[1726998372994,0.03725946,2579.7,2578.9,0.07752749]
[1726998373498,0.03725946,2579.7,2578.8,8.93867494]
[1726998373793,0.03725946,2579.7,2578.8,6.58237494]
[1726998373998,2.4605,2579.6,2578.8,6.58237494]
[1726998374180,0.03689393,2579.5,2578.8,6.58237494]
[1726998374357,0.03689393,2579.5,2578.9,0.07752828]
[1726998375470,0.03689393,2579.5,2579.0,2.3563]
[1726998375799,2.4605,2579.9,2579.2,3.0]
[1726998376104,2.4605,2579.9,2579.3,0.07751853]
[1726998376396,0.03705618,2579.8,2579.4,2.2554]
[1726998376701,2.297,2580.2,2579.4,2.2554]
[1726998376863,0.03708143,2579.7,2579.4,2.2554]
[1726998377060,2.297,2580.2,2579.4,2.2554]
[1726998377265,0.03734795,2580.1,2579.4,2.2554]
[1726998377611,0.03734795,2580.1,2579.5,3.07751165]
[1726998377757,0.03734795,2580.1,2579.8,3.0]
[1726998378072,2.297,2580.6,2579.9,2.33290544]
[1726998378272,0.03644993,2580.0,2579.9,2.33290544]
[1726998378469,2.297,2580.6,2579.9,2.33290544]
[1726998378671,0.03650703,2580.0,2579.9,2.33290544]
[1726998378873,2.297,2580.6,2579.9,2.33290544]
[1726998379079,0.03646083,2580.0,2579.9,2.33290544]
[1726998379281,2.297,2580.6,2579.9,2.33290544]
[1726998379767,0.03680566,2580.5,2579.9,2.2554]
[1726998380496,0.03680566,2580.5,2580.0,0.07750228]
[1726998380901,0.03680566,2580.5,2579.9,2.2554]
[1726998382105,0.03680566,2580.5,2579.6,2.2554]
[1726998383093,0.03680566,2580.5,2579.7,0.07750242]
[1726998383495,0.03680566,2580.5,2579.6,2.2554]
[1726998384607,0.03680566,2580.5,2579.7,0.07750253]
[1726998385362,0.03680566,2580.5,2579.8,3.0]
[1726998385563,0.03680566,2580.5,2579.9,0.07749933]
[1726998386772,0.03680566,2580.5,2580.0,2.2554]
[1726998387084,0.03680566,2580.5,2580.1,0.07749493]
[1726998387468,2.3354929,2580.9,2580.1,0.07749493]
[1726998387673,0.03677717,2580.8,2580.1,0.07749493]
[1726998388413,0.03677717,2580.8,2579.8,3.0]
[1726998388414,2.297,2580.6,2579.8,2.2554]
[1726998388785,0.03685141,2580.5,2579.8,2.2554]
[1726998391486,2.297,2580.4,2579.5,5.2554]
[1726998391723,3.87563,2580.3,2579.5,5.2554]
[1726998391880,6.17237,2580.4,2579.6,0.0775104]
[1726998392209,0.03691703,2580.3,2579.6,0.0775104]
[1726998393330,0.03691703,2580.3,2579.5,5.2554]
[1726998393630,2.297,2580.4,2579.8,3.0]
[1726998393924,0.03709,2580.3,2579.9,2.33290129]
[1726998394340,2.297,2580.8,2579.9,2.33290129]
[1726998394502,0.03702296,2580.2,2579.9,2.33290129]
[1726998394702,6.17184,2580.8,2579.9,2.2554]
[1726998395028,6.17184,2580.8,2579.8,3.0]
[1726998395230,0.03732697,2580.7,2579.8,3.0]
[1726998396230,0.03732697,2580.7,2579.7,5.2554]
[1726998396588,0.03732697,2580.7,2579.8,0.07749609]
[1726998396824,0.03732697,2580.7,2579.7,6.58237494]
[1726998397026,0.03732697,2580.7,2579.8,5.278]
[1726998397519,0.03732697,2580.7,2579.9,0.07749524]
[1726998398597,0.03732697,2580.7,2579.9,0.55]
[1726998398927,0.03732697,2580.7,2579.9,3.55]
[1726998399292,0.03732697,2580.7,2580.0,3.65986735]
[1726998399495,0.03732697,2580.7,2580.2,2.278]
[1726998399787,0.03732697,2580.7,2580.3,0.07749078]
[1726998400248,0.03740386,2580.6,2580.4,3.0]
[1726998400433,0.03740386,2580.6,2580.5,0.07748447]
[1726998400622,0.0384929,2580.9,2580.5,0.07748447]
[1726998400818,0.0373843,2580.8,2580.5,0.07748447]
[1726998401239,0.0373843,2580.8,2580.2,2.278]
[1726998401423,2.3661,2580.7,2580.3,0.07748246]
[1726998401765,0.03706497,2580.6,2580.3,0.07748246]
[1726998402663,2.4045929,2580.9,2580.3,0.07748246]
[1726998402824,0.03729125,2580.8,2580.3,0.07748246]
[1726998404738,0.0384929,2580.9,2580.3,3.0]
[1726998405066,0.03636215,2580.8,2580.2,2.278]
[1726998405269,0.03636215,2580.8,2580.1,3.0]
[1726998405270,2.3661,2580.7,2580.0,0.55]
[1726998405424,0.03625208,2580.6,2580.0,0.55]
[1726998408263,0.03625208,2580.6,2580.1,3.07749223]
[1726998408590,0.0384929,2580.9,2580.1,3.07749223]
[1726998408752,0.03576044,2580.5,2580.1,3.07749223]
[1726998408947,0.0384929,2580.9,2580.2,0.55]
[1726998409159,0.03394392,2580.4,2580.2,0.62748813]
[1726998409361,0.0384929,2580.9,2580.2,0.62748813]
[1726998409667,0.03468682,2580.8,2580.2,0.62748813]
[1726998410066,0.03468682,2580.8,2580.4,5.278]
[1726998410362,0.03468682,2580.8,2580.5,0.07748524]
[1726998410923,0.03468682,2580.8,2580.2,0.55]
[1726998410924,0.03468682,2580.8,2580.2,2.278]
[1726998411876,0.03468682,2580.8,2580.3,0.07748497]
[1726998412076,0.03468682,2580.8,2580.2,2.278]
[1726998412685,0.03468682,2580.8,2580.4,3.0]
[1726998413662,0.0384929,2580.9,2580.5,2.35547669]
[1726998413969,0.03471051,2580.8,2580.5,2.35547669]
[1726998414401,0.0384929,2580.9,2580.5,2.35547669]
[1726998414704,0.03478765,2580.8,2580.5,2.35547669]
[1726998415213,0.0384929,2580.9,2580.6,7.13237494]
[1726998415421,0.0384929,2580.9,2580.4,3.0]
[1726998415567,0.03484477,2580.8,2580.4,3.0]
[1726998415913,0.03498588,2580.7,2580.4,3.0]
[1726998416710,0.0384929,2580.9,2580.4,3.0]
[1726998417065,0.03495495,2580.8,2580.3,0.55]
[1726998417265,0.03495495,2580.8,2580.3,3.55]
[1726998418020,2.52395495,2580.8,2580.3,3.55]
[1726998419668,2.52395495,2580.8,2579.9,8.9716993]
[1726998419869,2.78019973,2580.8,2579.9,2.3036]
[1726998420475,2.52395495,2580.8,2579.9,2.3036]
[1726998420704,2.52395495,2580.8,2580.0,3.58237494]
[1726998421510,2.52395495,2580.8,2580.1,0.07749419]
[1726998421877,2.52395495,2580.8,2580.1,3.0]
[1726998422077,2.52395495,2580.8,2580.2,0.0774942]
[1726998422995,2.52395495,2580.8,2580.1,3.0]
[1726998423221,2.52395495,2580.8,2580.2,0.07749422]
[1726998423422,2.52395495,2580.8,2580.1,3.0]
[1726998424240,2.52395495,2580.8,2580.2,0.07749424]
[1726998426292,2.52395495,2580.8,2580.4,3.0]
[1726998426414,2.52395495,2580.8,2580.5,0.07748857]
[1726998429021,2.52395495,2580.8,2580.2,3.55]
[1726998429846,2.52395495,2580.8,2580.3,0.07748864]
[1726998430404,0.03495495,2580.8,2580.3,0.07748864]
[1726998431812,0.0384929,2580.9,2580.7,2.3036]
[1726998432017,0.0384929,2580.9,2580.8,0.07747517]
[1726998432212,0.0384929,2580.9,2580.7,3.0]
[1726998432443,0.0384929,2580.9,2580.8,0.07747523]
[1726998433432,0.0384929,2580.9,2580.5,0.07747792]
[1726998433858,0.0384929,2580.9,2580.6,0.55]
[1726998434158,0.0384929,2580.9,2580.7,0.07747539]
[1726998434366,0.0384929,2580.9,2580.6,0.55]
[1726998434722,0.0384929,2580.9,2580.7,0.07747538]
[1726998435064,0.0384929,2580.9,2580.7,3.07747538]
[1726998435266,0.0384929,2580.9,2580.7,3.0]
[1726998435429,0.0384929,2580.9,2580.8,0.07747789]
[1726998435760,0.0384929,2580.9,2580.5,0.07747787]
[1726998435946,2.2988,2580.8,2580.2,3.0]
[1726998436151,2.2988,2580.8,2580.1,2.4756]
[1726998436348,2.2988,2580.8,2580.0,3.58237494]
[1726998437360,2.2988,2580.8,2579.8,2.4756]
[1726998437624,2.2988,2580.8,2579.7,5.61292863]
[1726998437625,2.2988,2580.8,2579.7,3.58237494]
[1726998437776,2.2988,2580.7,2579.7,3.58237494]
[1726998439381,2.2988,2580.7,2579.8,0.55]
[1726998439679,2.2988,2580.7,2579.8,3.55]
[1726998440110,2.2988,2580.6,2579.7,3.0]
[1726998443278,2.2988,2580.5,2579.7,3.0]
[1726998443589,2.2988,2580.5,2579.8,0.07750375]
[1726998443790,2.2988,2580.5,2579.7,3.0]
[1726998444297,2.2988,2580.5,2579.8,0.07750376]
[1726998445406,2.2988,2580.5,2580.0,3.58237494]
[1726998445610,2.2988,2580.5,2580.1,3.07750078]
[1726998445972,2.2988,2580.8,2580.1,3.07750078]
[1726998446775,2.2988,2580.8,2580.4,3.0]
[1726998447072,2.2988,2580.8,2580.5,0.07749015]
[1726998447258,0.0384929,2580.9,2580.6,3.58237494]
[1726998447464,0.0384929,2580.9,2580.7,3.07748229]
[1726998451572,0.0384929,2580.9,2580.8,0.36061877]
[1726998453437,0.0384929,2580.9,2580.7,3.07748229]
[1726998453642,0.0384929,2580.9,2580.8,0.36059815]
[1726998456902,0.0384929,2580.9,2580.8,0.36055212]
[1726998457106,0.0384929,2580.9,2580.8,0.35255212]
[1726998457737,0.0384929,2580.9,2580.4,3.0]
[1726998458130,0.0384929,2580.9,2580.5,0.0774827]
[1726998460524,0.0384929,2580.9,2580.4,3.0]
[1726998461032,2.3714,2580.8,2580.7,3.87484]
[1726998462863,2.3714,2580.8,2580.3,3.87541]
[1726998463517,2.3714,2580.8,2580.3,7.75084]
[1726998463718,2.3714,2580.8,2580.3,3.87541]
[1726998464332,3.87478,2580.8,2580.3,3.87541]
[1726998464528,2.3714,2580.7,2580.3,3.87541]
[1726998464828,2.3714,2580.6,2580.3,3.87541]
[1726998466774,2.3714,2580.6,2579.8,6.6680993]
[1726998466775,2.3714,2580.2,2579.8,6.6680993]
[1726998466921,2.3714,2580.2,2579.4,3.87674]
[1726998466922,3.87623,2579.9,2579.4,3.87674]
[1726998467127,2.3714,2579.8,2579.4,3.87674]
[1726998467429,2.3714,2579.8,2579.3,10.5451093]
[1726998468440,2.3714,2579.8,2579.4,3.87676]
[1726998469277,2.3714,2579.8,2579.4,7.75355]
[1726998469597,2.3714,2579.8,2579.6,3.87648]
[1726998470325,2.3714,2579.8,2579.7,3.87641]
[1726998470444,2.3714,2579.8,2579.6,3.87647]
[1726998470645,2.3714,2579.8,2579.6,7.75295]
[1726998470880,2.3714,2579.8,2579.7,3.87641]
[1726998472545,2.996069,2580.4,2580.0,3.87587]
[1726998472770,2.3714,2580.4,2580.0,3.87587]
[1726998473906,2.3714,2580.4,2580.2,3.87564]
[1726998474053,2.3714,2580.4,2580.0,7.7517]
[1726998474252,2.3714,2580.4,2580.1,3.87579]
[1726998474484,2.3714,2580.4,2580.0,3.87583]
[1726998474670,2.3714,2580.4,2580.0,7.75172]
[1726998475081,2.3714,2580.4,2580.1,3.8758]
[1726998478817,2.3714,2580.4,2580.0,3.87583]
[1726998479111,0.23714,2580.3,2579.9,3.0]
[1726998479317,2.3123,2580.2,2579.9,3.0]
[1726998479477,2.3123,2580.2,2579.8,3.95368375]
[1726998480699,2.3123,2580.2,2579.8,3.87617]
[1726998480870,2.3123,2580.2,2579.9,3.87611]
[1726998483190,2.3123,2580.2,2579.8,3.87617]
[1726998483822,2.3123,2580.2,2579.9,3.87609]
[1726998484307,2.931068,2580.2,2579.8,7.75235]
[1726998484504,2.931068,2580.2,2579.9,3.87608]
[1726998484692,2.3123,2580.2,2579.9,3.87608]
[1726998484894,2.3123,2580.2,2580.0,3.87589]
[1726998486223,2.3123,2580.2,2580.1,3.87581]
[1726998489522,2.3123,2580.6,2580.2,3.87564]
[1726998489710,2.54353,2580.6,2580.3,3.87544]
[1726998489904,2.54353,2580.6,2580.2,7.75122]
[1726998490116,2.54353,2580.6,2580.2,3.87558]
[1726998493431,2.54353,2580.6,2580.3,3.87547]
[1726998493929,2.3123,2580.6,2580.5,3.87521]
[1726998498923,2.3123,2580.6,2580.4,3.87531]
[1726998501189,2.3123,2580.6,2580.4,3.87529]
[1726998502647,2.4458,2580.8,2580.5,3.87521]
[1726998502860,2.4458,2580.8,2580.6,3.87503]
[1726998503208,2.4458,2580.8,2580.6,3.87499]
[1726998504920,2.4458,2580.8,2580.6,7.74996]
[1726998505559,2.4458,2580.8,2580.7,3.87491]
[1726998505728,0.0384929,2580.9,2580.7,3.87491]
[1726998505931,0.0384929,2580.9,2580.7,3.9524003]
[1726998507052,0.0384929,2580.9,2580.8,3.87476]
[1726998512077,0.0384929,2580.9,2580.8,13.00211912]
[1726998512288,0.0384929,2580.9,2580.8,9.34226]
[1726998514830,0.0384929,2580.9,2580.8,6.87476]
[1726998515577,2.4107929,2580.9,2580.2,2.4675]
[1726998515875,2.4107929,2580.9,2580.5,3.87519]
[1726998515876,0.24107929,2580.8,2580.5,3.87519]
[1726998516035,0.24107929,2580.8,2580.5,7.75038]
[1726998516237,2.4107929,2580.9,2580.5,3.87519]
[1726998516861,2.4107929,2580.9,2580.6,3.87503]
[1726998517067,2.4107929,2580.9,2580.3,3.87542]
[1726998517650,2.4107929,2580.9,2580.5,3.87519]
[1726998518353,2.4107929,2580.9,2580.5,7.75032]
[1726998518555,2.4107929,2580.9,2580.5,3.87513]
[1726998518759,2.4107929,2580.9,2580.5,7.75026]
[1726998519158,2.4107929,2580.9,2580.5,3.87513]
[1726998520426,3.03930319,2580.9,2580.5,3.87513]
[1726998520946,3.03930319,2580.9,2580.5,7.75027]
[1726998521145,3.03930319,2580.9,2580.5,7.75026]
[1726998521553,3.03930319,2580.9,2580.5,3.87513]
[1726998521890,3.03930319,2580.9,2580.5,7.75025]
[1726998522087,3.03930319,2580.9,2580.5,3.87512]
[1726998522258,3.03930319,2580.9,2580.5,7.75024]
[1726998524602,3.03930319,2580.9,2580.5,7.75025]
[1726998524767,0.30393032,2580.8,2580.5,3.87512]
[1726998525508,0.30393032,2580.8,2580.5,7.75026]
[1726998526613,0.30393032,2580.8,2580.5,3.87512]
[1726998528407,0.30393032,2580.8,2580.5,7.75026]
[1726998529089,0.30393032,2580.8,2580.5,3.87512]
[1726998529293,0.30393032,2580.8,2580.5,7.75025]
[1726998529621,0.30393032,2580.8,2580.5,3.87512]
[1726998530103,0.30393032,2580.8,2580.5,7.75025]
[1726998530412,0.30393032,2580.8,2580.5,3.87512]
[1726998530569,0.30393032,2580.8,2580.5,7.75025]
[1726998530769,0.30393032,2580.8,2580.5,3.87512]
[1726998533591,0.30393032,2580.8,2580.6,3.87496]
[1726998533810,0.30393032,2580.8,2580.4,3.87534]
[1726998534281,0.30393032,2580.8,2580.5,3.87521]
[1726998536322,2.3708,2580.3,2579.6,19.84]
[1726998536508,0.23708,2580.2,2579.6,3.87648]
[1726998536709,2.3708,2580.1,2579.7,3.87633]
[1726998537111,3.87607,2580.0,2579.4,6.6680993]
[1726998537427,3.87607,2580.0,2579.5,3.8767]
[1726998537428,2.3708,2579.9,2579.5,3.8767]
[1726998540859,2.3708,2579.9,2579.6,3.87649]
[1726998541057,2.3708,2579.9,2579.8,3.87626]
[1726998541350,2.3708,2580.2,2579.8,3.87626]
[1726998541552,3.382981,2580.2,2579.8,3.87615]
[1726998541767,2.3708,2580.2,2579.7,2.3566]
[1726998541919,2.3708,2580.2,2579.7,0.07751476]
[1726998542115,2.3708,2580.2,2579.9,3.87604]
[1726998542832,2.3708,2580.2,2580.0,3.87587]
[1726998543375,2.3708,2580.2,2579.8,3.87612]
[1726998543652,2.3708,2580.2,2579.7,0.07751476]
[1726998543653,6.871087,2580.2,2579.7,3.87636]
[1726998544846,2.995417,2580.2,2579.6,6.87648]
[1726998545055,2.995417,2580.2,2579.7,3.87641]
[1726998546430,6.871167,2580.2,2579.6,6.87647]
[1726998546749,6.871167,2580.2,2579.7,3.87639]
[1726998549239,2.3708,2580.0,2579.6,3.87647]
[1726998549443,6.24677,2580.0,2579.5,3.87672]
[1726998550171,2.3708,2579.8,2579.4,3.87678]
[1726998550522,2.3708,2579.8,2579.3,3.0]
[1726998550632,3.87666,2579.6,2579.0,10.5454593]
[1726998550982,2.3708,2579.5,2579.0,3.87736]
[1726998551269,2.3708,2579.5,2578.8,7.75538]
[1726998551270,2.3708,2579.2,2578.8,7.75538]
[1726998551464,2.3708,2579.2,2578.8,3.87768]
[1726998552171,2.3708,2579.2,2578.9,3.87755]
[1726998552675,2.3708,2579.2,2579.0,3.87746]
[1726998552975,2.3708,2579.2,2579.0,7.75484]
[1726998553130,2.3708,2579.4,2579.0,3.87738]
[1726998553334,2.3708,2579.4,2579.1,3.87723]
[1726998553969,2.3708,2579.4,2578.9,7.75511]
[1726998554289,2.3708,2579.4,2578.9,3.87751]
[1726998554477,6.24767,2579.4,2578.9,3.87751]
[1726998554833,7.26011,2579.4,2578.9,3.87751]
[1726998555368,3.38324,2579.4,2578.9,3.87751]
[1726998556776,7.26011,2579.4,2578.9,3.87751]
[1726998557071,2.4974,2579.3,2578.9,3.87751]
[1726998557277,6.37444,2579.3,2578.8,6.87772]
[1726998557957,2.4974,2579.3,2578.9,3.87761]
[1726998558218,2.4974,2579.3,2578.7,3.87777]
[1726998558219,3.236057,2579.3,2578.7,3.87777]
[1726998558532,6.37467,2579.2,2578.7,3.87777]
[1726998558693,2.4974,2579.1,2578.7,3.87777]
[1726998558895,6.37475,2579.1,2578.5,3.87808]
[1726998559090,2.4974,2578.9,2578.5,3.87808]
[1726998559287,2.4974,2578.9,2578.5,7.75621]
[1726998559831,2.4974,2578.9,2578.7,3.8779]
[1726998560036,2.4974,2578.9,2578.8,3.87777]
[1726998560528,2.4974,2579.3,2578.7,3.8779]
[1726998560732,2.4974,2579.3,2579.0,3.87737]
[1726998562331,2.4974,2579.3,2578.8,3.87763]
[1726998562546,2.4974,2579.1,2578.8,3.87763]
[1726998563637,2.4974,2579.1,2578.8,7.75532]
[1726998563842,2.4974,2579.1,2578.8,3.87763]
[1726998564155,2.4974,2579.1,2578.5,3.87816]
[1726998564444,2.4974,2578.9,2578.5,6.87819]
[1726998565039,2.4974,2578.9,2578.5,3.87819]
[1726998565253,2.4974,2578.9,2578.4,3.87829]
[1726998565568,2.4974,2578.9,2578.4,3.87825]
[1726998566710,2.4974,2578.9,2578.5,3.87812]
[1726998568413,7.012545,2578.9,2578.4,3.87825]
[1726998568611,3.134895,2578.9,2578.4,7.75652]
[1726998568825,3.134895,2578.9,2578.5,3.87821]
[1726998569719,7.012515,2578.9,2578.4,3.87825]
[1726998569937,7.012515,2578.9,2578.4,7.75654]
[1726998570745,2.4974,2578.9,2578.3,0.0775641]
[1726998571065,2.4974,2578.9,2578.6,3.87794]
[1726998573357,2.4974,2578.9,2578.5,3.87818]
[1726998573563,2.4974,2578.9,2578.5,3.87812]
[1726998574358,2.4974,2578.9,2578.5,7.75625]
[1726998574656,2.4974,2578.8,2578.3,3.87843]
[1726998574962,2.4974,2578.8,2578.3,7.75686]
[1726998575162,6.37528,2578.8,2578.3,7.75687]
[1726998575337,6.37528,2578.8,2578.3,3.87843]
[1726998575659,2.4974,2578.8,2578.3,3.87843]
[1726998575818,2.4974,2578.8,2578.3,7.75687]
[1726998576620,2.4974,2578.8,2578.4,3.87835]
[1726998577501,3.49340593,2578.8,2578.4,3.87835]
[1726998578816,3.49340593,2578.8,2578.3,3.87843]
[1726998578817,2.4456,2578.7,2578.3,7.75686]
[1726998579216,2.4456,2578.7,2578.3,3.87843]
[1726998579723,6.32363,2578.7,2578.1,6.87871]
[1726998579889,4.87377593,2578.8,2578.0,6.6680993]
[1726998579890,3.87825,2578.5,2578.0,10.5470093]
[1726998580224,2.4456,2578.4,2578.0,6.6680993]
[1726998580534,6.32401,2578.4,2578.0,6.6680993]
[1726998580922,2.4456,2578.4,2578.0,10.5470593]
[1726998581634,2.4456,2578.4,2578.1,3.87879]
[1726998582136,2.4456,2578.4,2578.2,3.87867]
[1726998582341,2.4456,2578.6,2578.5,3.87822]
[1726998582646,2.4456,2579.1,2578.9,3.87754]
[1726998583168,2.4456,2579.1,2578.7,3.87782]
[1726998583169,2.4456,2579.1,2578.7,3.8778]
[1726998583744,2.4456,2579.1,2578.8,3.87764]
[1726998583974,2.4456,2579.1,2578.7,3.8778]
[1726998583975,2.4456,2579.1,2578.9,3.87759]
[1726998584837,2.4456,2579.1,2578.7,7.75558]
[1726998585072,2.4456,2579.1,2578.8,3.87773]
[1726998585971,2.4456,2579.1,2578.9,3.87756]
[1726998586390,2.4456,2579.5,2579.1,3.87727]
[1726998586585,2.4456,2579.5,2579.1,7.75449]
[1726998586729,2.4456,2579.5,2579.2,3.87707]
[1726998587732,2.4456,2579.5,2579.3,3.87692]
[1726998588808,2.4456,2579.8,2579.3,3.87692]
[1726998589005,0.63218,2579.7,2579.3,3.87692]
[1726998589216,0.63218,2579.7,2579.1,7.75442]
[1726998589427,0.63218,2579.7,2579.2,3.87712]
[1726998589617,0.63218,2579.7,2579.1,3.87718]
[1726998589618,4.5086,2579.7,2579.1,3.87718]
[1726998589779,2.4456,2579.6,2579.1,7.75441]
[1726998590426,2.4456,2579.6,2579.2,3.87715]
[1726998590574,2.4456,2579.6,2579.1,7.7544]
[1726998591620,2.4456,2579.6,2579.2,3.87715]